[Event "Late-Titled-Tuesday-Blitz-September-05-2023"]
[Site "Chess.com"]
[Date "2023.09.05"]
[Round "2"]
[White "TreinadorBR"]
[Black "Rodalquilar"]
[Result "0-1"]
[WhiteElo "2383"]
[BlackElo "2784"]
[TimeControl "180+1"]
[EndTime "14:17:57 PDT"]
[Termination "Rodalquilar won by resignation"]

1. e4 {[%clk 0:02:34.2]} 1... d5 {[%clk 0:02:59.9]} 2. exd5 {[%clk 0:02:34.1]}
2... Qxd5 {[%clk 0:03:00.8]} 3. Nc3 {[%clk 0:02:34]} 3... Qa5 {[%clk 0:03:01]}
4. d4 {[%clk 0:02:29.3]} 4... Nf6 {[%clk 0:03:01.3]} 5. h3 {[%clk 0:02:18.1]}
5... Bf5 {[%clk 0:02:58.1]} 6. Bd3 {[%clk 0:02:16.2]} 6... Nbd7 {[%clk
0:02:55.9]} 7. Bxf5 {[%clk 0:02:01.5]} 7... Qxf5 {[%clk 0:02:55.3]} 8. Qf3
{[%clk 0:02:02.2]} 8... Qxf3 {[%clk 0:02:53]} 9. Nxf3 {[%clk 0:02:03.1]} 9... e6
{[%clk 0:02:51.7]} 10. Bf4 {[%clk 0:01:58.8]} 10... Bd6 {[%clk 0:02:50.2]} 11.
Ne5 {[%clk 0:01:55.5]} 11... Bxe5 {[%clk 0:02:16.3]} 12. dxe5 {[%clk 0:01:48.7]}
12... Nd5 {[%clk 0:02:16.5]} 13. Nxd5 {[%clk 0:01:45.8]} 13... exd5 {[%clk
0:02:17.4]} 14. O-O-O {[%clk 0:01:46.1]} 14... c6 {[%clk 0:02:17]} 15. Rhe1
{[%clk 0:01:46.6]} 15... Ke7 {[%clk 0:01:50.9]} 16. Bg3 {[%clk 0:01:28.3]} 16...
g5 {[%clk 0:01:48.5]} 17. Rd3 {[%clk 0:01:24.9]} 17... Nc5 {[%clk 0:01:45.1]}
18. Rf3 {[%clk 0:01:17.3]} 18... h5 {[%clk 0:01:32.7]} 19. h4 {[%clk 0:01:09]}
19... g4 {[%clk 0:01:32.5]} 20. Rfe3 {[%clk 0:00:54.2]} 20... Ne4 {[%clk
0:01:28.7]} 21. R1e2 {[%clk 0:00:49.3]} 21... b5 {[%clk 0:01:25]} 22. Bf4 {[%clk
0:00:49.4]} 22... Rhg8 {[%clk 0:01:11.6]} 23. c3 {[%clk 0:00:41.5]} 23... Ke6
{[%clk 0:01:09.8]} 24. f3 {[%clk 0:00:38.3]} 24... gxf3 {[%clk 0:01:09.6]} 25.
gxf3 {[%clk 0:00:39.2]} 25... Ng3 {[%clk 0:01:10]} 26. Bxg3 {[%clk 0:00:21.9]}
26... Rxg3 {[%clk 0:01:09.4]} 27. f4 {[%clk 0:00:22.8]} 27... Rxe3 {[%clk
0:01:05.8]} 28. Rxe3 {[%clk 0:00:22.8]} 28... Rg8 {[%clk 0:01:06.7]} 29. Rf3
{[%clk 0:00:13.4]} 29... Kf5 {[%clk 0:01:00.4]} 30. Re3 {[%clk 0:00:13.5]} 30...
Ke6 {[%clk 0:00:53]} 31. Rf3 {[%clk 0:00:13.1]} 31... Rg4 {[%clk 0:00:53.1]} 32.
Kd2 {[%clk 0:00:10.4]} 32... Kf5 {[%clk 0:00:50.7]} 33. Ke3 {[%clk 0:00:06.3]}
33... Rxh4 {[%clk 0:00:50.4]} 34. Rg3 {[%clk 0:00:06.3]} 34... Rg4 {[%clk
0:00:50.5]} 35. Rh3 {[%clk 0:00:06.5]} 35... h4 {[%clk 0:00:50.2]} 36. Kf3
{[%clk 0:00:07.2]} 36... Rxf4+ {[%clk 0:00:50.4]} 37. Ke3 {[%clk 0:00:07.9]}
37... Kxe5 {[%clk 0:00:47.2]} 38. Kd3 {[%clk 0:00:08.1]} 38... c5 {[%clk
0:00:43.8]} 39. Re3+ {[%clk 0:00:07.7]} 39... Re4 {[%clk 0:00:43.4]} 40. Rf3
{[%clk 0:00:08.1]} 40... f5 {[%clk 0:00:43.7]} 41. Rf1 {[%clk 0:00:07.2]} 41...
h3 {[%clk 0:00:42.4]} 42. Rh1 {[%clk 0:00:04]} 42... Rh4 {[%clk 0:00:42.3]} 43.
Re1+ {[%clk 0:00:04.6]} 43... Kf6 {[%clk 0:00:42.3]} 44. Rh1 {[%clk 0:00:04.5]}
44... h2 {[%clk 0:00:42.7]} 45. Ke3 {[%clk 0:00:05.4]} 45... Ke5 {[%clk
0:00:41.9]} 46. Kf3 {[%clk 0:00:05.7]} 46... f4 {[%clk 0:00:42.3]} 47. Re1+
{[%clk 0:00:05.7]} 47... Kf5 {[%clk 0:00:42]} 48. Rh1 {[%clk 0:00:06.6]} 48...
Rh3+ {[%clk 0:00:41.6]} 49. Kg2 {[%clk 0:00:06.8]} 49... Kg4 {[%clk 0:00:42.1]}
50. Rd1 {[%clk 0:00:03.8]} 50... h1=Q+ {[%clk 0:00:41.7]} 0-1

[Event "Late-Titled-Tuesday-Blitz-September-05-2023"]
[Site "Chess.com"]
[Date "2023.09.05"]
[Round "2"]
[White "nassimzrikem"]
[Black "szachmistrz2500"]
[Result "1-0"]
[WhiteElo "2279"]
[BlackElo "2462"]
[TimeControl "180+1"]
[EndTime "14:17:58 PDT"]
[Termination "nassimzrikem won by resignation"]

1. d4 {[%clk 0:02:55.3]} 1... c5 {[%clk 0:02:59]} 2. e3 {[%clk 0:02:55.2]} 2...
g6 {[%clk 0:02:57.4]} 3. c3 {[%clk 0:02:54.4]} 3... b6 {[%clk 0:02:54.6]} 4. Nf3
{[%clk 0:02:54.4]} 4... Bb7 {[%clk 0:02:52.6]} 5. Bc4 {[%clk 0:02:37.5]} 5...
Nf6 {[%clk 0:02:48.7]} 6. dxc5 {[%clk 0:02:37.7]} 6... bxc5 {[%clk 0:02:46.7]}
7. Qb3 {[%clk 0:02:37]} 7... d5 {[%clk 0:02:35]} 8. Qxb7 {[%clk 0:02:36.2]} 8...
dxc4 {[%clk 0:02:35.3]} 9. Qxa8 {[%clk 0:02:36.3]} 9... Bg7 {[%clk 0:02:32.9]}
10. O-O {[%clk 0:02:35]} 10... O-O {[%clk 0:02:33]} 11. Nbd2 {[%clk 0:02:33.9]}
11... Qc7 {[%clk 0:02:29.8]} 12. Ne5 {[%clk 0:01:51.3]} 12... Qxe5 {[%clk
0:02:28.1]} 13. Qf3 {[%clk 0:01:51.7]} 13... Qc7 {[%clk 0:02:20]} 14. Nxc4
{[%clk 0:01:51.8]} 14... e5 {[%clk 0:02:19.6]} 15. e4 {[%clk 0:01:51.8]} 15...
Nc6 {[%clk 0:02:15.5]} 16. Bg5 {[%clk 0:01:50.8]} 16... Nd7 {[%clk 0:02:15.4]}
17. Rfd1 {[%clk 0:01:50.1]} 17... f6 {[%clk 0:02:14.5]} 18. Be3 {[%clk
0:01:49.1]} 18... Rb8 {[%clk 0:02:14.1]} 19. Rd6 {[%clk 0:01:45]} 19... Nf8
{[%clk 0:02:12.2]} 20. Rad1 {[%clk 0:01:44.8]} 20... Na5 {[%clk 0:02:07.8]} 21.
Nxa5 {[%clk 0:01:40.4]} 21... Qxa5 {[%clk 0:02:07.9]} 22. Qe2 {[%clk 0:01:40.6]}
22... Qxa2 {[%clk 0:02:04.9]} 23. Bxc5 {[%clk 0:01:29.8]} 23... Rxb2 {[%clk
0:02:03.4]} 24. Qd3 {[%clk 0:01:28.3]} 24... a5 {[%clk 0:01:50.4]} 25. Rd8
{[%clk 0:01:28.5]} 25... Qf7 {[%clk 0:01:39.4]} 26. h4 {[%clk 0:01:15.8]} 26...
a4 {[%clk 0:01:34.4]} 27. Qd7 {[%clk 0:01:11.9]} 27... Rb7 {[%clk 0:01:28.1]}
28. Qxf7+ {[%clk 0:01:08.4]} 28... Kxf7 {[%clk 0:01:27.9]} 29. Ra8 {[%clk
0:01:04.8]} 29... Ne6 {[%clk 0:01:26.5]} 30. Bb4 {[%clk 0:01:03.8]} 30... Bf8
{[%clk 0:01:23.3]} 31. Rxa4 {[%clk 0:00:59.9]} 31... Bxb4 {[%clk 0:01:20.3]} 32.
Rxb4 {[%clk 0:01:00.8]} 32... Rc7 {[%clk 0:01:20.7]} 33. Rc1 {[%clk 0:00:52]}
33... Nc5 {[%clk 0:01:19.7]} 34. Rc4 {[%clk 0:00:47.4]} 34... Ke6 {[%clk
0:01:19.4]} 35. Rd1 {[%clk 0:00:47.6]} 35... f5 {[%clk 0:01:12.4]} 36. f3 {[%clk
0:00:43]} 36... fxe4 {[%clk 0:01:08.5]} 37. fxe4 {[%clk 0:00:43.9]} 37... h5
{[%clk 0:01:05.6]} 38. Rd5 {[%clk 0:00:44.3]} 38... Na6 {[%clk 0:01:06]} 39.
Rxc7 {[%clk 0:00:44.8]} 39... Nxc7 {[%clk 0:01:06.3]} 40. Ra5 {[%clk 0:00:44.4]}
40... Kd6 {[%clk 0:01:04.8]} 41. Kf2 {[%clk 0:00:43]} 41... Ne6 {[%clk
0:01:05.1]} 42. Ra6+ {[%clk 0:00:40.5]} 42... Ke7 {[%clk 0:01:05.2]} 43. g3
{[%clk 0:00:35.6]} 43... g5 {[%clk 0:01:04.5]} 44. hxg5 {[%clk 0:00:34.9]} 44...
Nxg5 {[%clk 0:01:04.1]} 45. Ke3 {[%clk 0:00:35.8]} 45... Ne6 {[%clk 0:01:03.4]}
46. Ra7+ {[%clk 0:00:33.4]} 46... Kf6 {[%clk 0:01:02.3]} 47. Rh7 {[%clk
0:00:33.4]} 47... Kg6 {[%clk 0:01:02]} 48. Ra7 {[%clk 0:00:32.6]} 48... Kf6
{[%clk 0:01:01.8]} 49. c4 {[%clk 0:00:33.2]} 49... Nc5 {[%clk 0:01:00.7]} 50.
Ra5 {[%clk 0:00:31.5]} 50... Nb3 {[%clk 0:01:00.8]} 51. Ra6+ {[%clk 0:00:31.6]}
51... Kg7 {[%clk 0:00:54.8]} 52. Re6 {[%clk 0:00:28.1]} 52... Kf7 {[%clk
0:00:47.8]} 53. Rxe5 {[%clk 0:00:27.6]} 53... Kg6 {[%clk 0:00:46.2]} 54. Rb5
{[%clk 0:00:26.9]} 1-0

[Event "Late-Titled-Tuesday-Blitz-September-05-2023"]
[Site "Chess.com"]
[Date "2023.09.05"]
[Round "2"]
[White "Casper"]
[Black "AradNazari"]
[Result "0-1"]
[WhiteElo "2454"]
[BlackElo "2712"]
[TimeControl "180+1"]
[EndTime "14:18:01 PDT"]
[Termination "AradNazari won by resignation"]

1. e4 {[%clk 0:03:00.9]} 1... e6 {[%clk 0:02:56.2]} 2. Qe2 {[%clk 0:02:58.8]}
2... c5 {[%clk 0:02:49.4]} 3. Nf3 {[%clk 0:02:58.8]} 3... Nc6 {[%clk 0:02:50]}
4. b3 {[%clk 0:02:56.3]} 4... Nf6 {[%clk 0:02:44.2]} 5. Bb2 {[%clk 0:02:56.8]}
5... Be7 {[%clk 0:02:44.3]} 6. g3 {[%clk 0:02:56.8]} 6... d5 {[%clk 0:02:44.6]}
7. exd5 {[%clk 0:02:56.6]} 7... exd5 {[%clk 0:02:44.4]} 8. Bg2 {[%clk
0:02:56.9]} 8... Be6 {[%clk 0:02:44.3]} 9. O-O {[%clk 0:02:57.1]} 9... O-O
{[%clk 0:02:44.9]} 10. d4 {[%clk 0:02:55.9]} 10... Ne4 {[%clk 0:02:25.1]} 11.
Nbd2 {[%clk 0:02:52.8]} 11... Bf6 {[%clk 0:02:18.8]} 12. Nxe4 {[%clk 0:02:46.6]}
12... dxe4 {[%clk 0:02:17.6]} 13. Qxe4 {[%clk 0:02:47.5]} 13... Bd5 {[%clk
0:02:14.5]} 14. Qf4 {[%clk 0:02:44]} 14... Bxf3 {[%clk 0:02:08.4]} 15. Bxf3
{[%clk 0:02:34.8]} 15... Nxd4 {[%clk 0:02:06.7]} 16. Bxd4 {[%clk 0:02:01.2]}
16... Bxd4 {[%clk 0:01:54.7]} 17. Rad1 {[%clk 0:01:25.1]} 17... Qa5 {[%clk
0:01:50.6]} 18. Bxb7 {[%clk 0:01:11.5]} 18... Rab8 {[%clk 0:01:50.6]} 19. Bd5
{[%clk 0:01:10.9]} 19... Qxa2 {[%clk 0:01:49.3]} 20. Rde1 {[%clk 0:00:53]} 20...
Rbd8 {[%clk 0:01:45.4]} 21. Qe4 {[%clk 0:00:26.4]} 21... g6 {[%clk 0:01:32.4]}
22. Re2 {[%clk 0:00:25.8]} 22... Qa5 {[%clk 0:01:26.9]} 23. Rfe1 {[%clk
0:00:23.3]} 23... Kg7 {[%clk 0:01:24.4]} 24. Bc4 {[%clk 0:00:22.1]} 24... Rd6
{[%clk 0:01:21.9]} 25. Kg2 {[%clk 0:00:12.7]} 25... Rf6 {[%clk 0:01:22]} 26. f4
{[%clk 0:00:12.3]} 26... h5 {[%clk 0:01:18.1]} 27. h4 {[%clk 0:00:11]} 27... Rd8
{[%clk 0:01:13.6]} 28. Qf3 {[%clk 0:00:08.1]} 28... Bc3 {[%clk 0:01:06.7]} 29.
Rf1 {[%clk 0:00:06]} 29... Bd4 {[%clk 0:01:00.8]} 30. Rfe1 {[%clk 0:00:04.9]}
30... Qb6 {[%clk 0:00:53.8]} 31. Re7 {[%clk 0:00:04.8]} 31... a5 {[%clk
0:00:54.3]} 32. Qb7 {[%clk 0:00:04.6]} 32... Qxb7+ {[%clk 0:00:37.9]} 33. Rxb7
{[%clk 0:00:05.5]} 33... Bc3 {[%clk 0:00:38.7]} 34. Ree7 {[%clk 0:00:05.9]}
34... Rd2+ {[%clk 0:00:38.7]} 35. Kf3 {[%clk 0:00:05.3]} 35... Rxc2 {[%clk
0:00:34.1]} 36. Bxf7 {[%clk 0:00:05.2]} 36... Kf8 {[%clk 0:00:26.4]} 37. Bd5
{[%clk 0:00:04]} 37... Bd4 {[%clk 0:00:25.8]} 38. Rh7 {[%clk 0:00:03.1]} 38...
Rf2+ {[%clk 0:00:21.6]} 39. Ke4 {[%clk 0:00:03.4]} 39... Re2+ {[%clk 0:00:22]}
40. Kd3 {[%clk 0:00:03.5]} 40... Re3+ {[%clk 0:00:22.5]} 41. Kd2 {[%clk
0:00:04]} 41... Rd6 {[%clk 0:00:21.5]} 42. Rh8+ {[%clk 0:00:03.9]} 42... Bxh8
{[%clk 0:00:21.1]} 0-1

[Event "Late-Titled-Tuesday-Blitz-September-05-2023"]
[Site "Chess.com"]
[Date "2023.09.05"]
[Round "2"]
[White "karpovian123"]
[Black "DeTimmerman"]
[Result "0-1"]
[WhiteElo "2407"]
[BlackElo "2673"]
[TimeControl "180+1"]
[EndTime "14:18:02 PDT"]
[Termination "DeTimmerman won by checkmate"]

1. d4 {[%clk 0:03:00.9]} 1... Nf6 {[%clk 0:02:59.8]} 2. Nf3 {[%clk 0:03:00.2]}
2... e6 {[%clk 0:02:59.9]} 3. c4 {[%clk 0:03:00.9]} 3... d5 {[%clk 0:03:00.4]}
4. g3 {[%clk 0:03:00.9]} 4... Be7 {[%clk 0:03:00.2]} 5. Bg2 {[%clk 0:03:01.4]}
5... O-O {[%clk 0:03:00.9]} 6. O-O {[%clk 0:03:01.9]} 6... dxc4 {[%clk
0:03:01.5]} 7. Qc2 {[%clk 0:03:02.6]} 7... b5 {[%clk 0:03:01.5]} 8. a4 {[%clk
0:03:01]} 8... b4 {[%clk 0:03:01.7]} 9. Nbd2 {[%clk 0:02:43.8]} 9... Bb7 {[%clk
0:02:52.2]} 10. Nxc4 {[%clk 0:02:40.8]} 10... a5 {[%clk 0:02:52]} 11. Bg5 {[%clk
0:02:36.6]} 11... Nbd7 {[%clk 0:02:51.2]} 12. e3 {[%clk 0:02:35.7]} 12... Be4
{[%clk 0:02:46.8]} 13. Qe2 {[%clk 0:02:25.2]} 13... c5 {[%clk 0:02:46.8]} 14.
Rfd1 {[%clk 0:02:19.3]} 14... cxd4 {[%clk 0:02:45.3]} 15. Nxd4 {[%clk
0:02:17.5]} 15... Bxg2 {[%clk 0:02:44.8]} 16. Kxg2 {[%clk 0:02:18.4]} 16... Ra6
{[%clk 0:02:29.1]} 17. Qf3 {[%clk 0:01:51.4]} 17... Qa8 {[%clk 0:02:28.9]} 18.
Qxa8 {[%clk 0:01:50.4]} 18... Rfxa8 {[%clk 0:02:29.8]} 19. Nb5 {[%clk
0:01:44.4]} 19... Rc8 {[%clk 0:02:17.9]} 20. Rac1 {[%clk 0:01:40.8]} 20... Nc5
{[%clk 0:01:29.6]} 21. Ncd6 {[%clk 0:01:25.5]} 21... Rcc6 {[%clk 0:01:30]} 22.
Ne8 {[%clk 0:00:54.9]} 22... Nxa4 {[%clk 0:01:23.7]} 23. Rxc6 {[%clk 0:00:26.3]}
23... Rxc6 {[%clk 0:01:24.6]} 24. Nxf6+ {[%clk 0:00:26.5]} 24... Bxf6 {[%clk
0:01:23.6]} 25. Bxf6 {[%clk 0:00:26.7]} 25... gxf6 {[%clk 0:01:24.5]} 26. b3
{[%clk 0:00:15.5]} 26... Nc3 {[%clk 0:01:17.4]} 27. Rc1 {[%clk 0:00:15.9]} 27...
Rc5 {[%clk 0:01:17.8]} 28. Nd4 {[%clk 0:00:14.2]} 28... e5 {[%clk 0:00:59.9]}
29. Nf5 {[%clk 0:00:13.9]} 29... a4 {[%clk 0:01:00.2]} 30. bxa4 {[%clk
0:00:13.9]} 30... b3 {[%clk 0:01:01.1]} 31. Ne7+ {[%clk 0:00:02.8]} 31... Kf8
{[%clk 0:00:59.4]} 32. Nd5 {[%clk 0:00:03.4]} 32... b2 {[%clk 0:00:17.1]} 33.
Rxc3 {[%clk 0:00:04]} 33... b1=Q {[%clk 0:00:16]} 34. Rxc5 {[%clk 0:00:04.7]}
34... Qe4+ {[%clk 0:00:16.5]} 35. f3 {[%clk 0:00:05.2]} 35... Qxa4 {[%clk
0:00:17.1]} 36. Rc8+ {[%clk 0:00:05.3]} 36... Kg7 {[%clk 0:00:17.4]} 37. Rd8
{[%clk 0:00:05]} 37... Qc2+ {[%clk 0:00:16.3]} 38. Kh3 {[%clk 0:00:05.2]} 38...
Qd1 {[%clk 0:00:14.8]} 39. Kg4 {[%clk 0:00:04.8]} 39... h5+ {[%clk 0:00:14.8]}
40. Kh4 {[%clk 0:00:04.2]} 40... Qxf3 {[%clk 0:00:15.7]} 41. Ne7 {[%clk
0:00:03.9]} 41... Qg4# {[%clk 0:00:15.5]} 0-1

[Event "Late-Titled-Tuesday-Blitz-September-05-2023"]
[Site "Chess.com"]
[Date "2023.09.05"]
[Round "2"]
[White "Godzillator"]
[Black "ozates"]
[Result "1-0"]
[WhiteElo "2335"]
[BlackElo "2547"]
[TimeControl "180+1"]
[EndTime "14:18:03 PDT"]
[Termination "Godzillator won on time"]

1. Nf3 {[%clk 0:03:00.9]} 1... Nc6 {[%clk 0:02:52.3]} 2. d4 {[%clk 0:03:00.6]}
2... d5 {[%clk 0:02:52.6]} 3. b3 {[%clk 0:03:00]} 3... Bg4 {[%clk 0:02:52.5]} 4.
Bb2 {[%clk 0:02:59.8]} 4... Qd7 {[%clk 0:02:52.4]} 5. e3 {[%clk 0:02:59.5]} 5...
O-O-O {[%clk 0:02:51]} 6. Bb5 {[%clk 0:02:59]} 6... f6 {[%clk 0:02:51.4]} 7.
Nbd2 {[%clk 0:02:57.4]} 7... a6 {[%clk 0:02:50.9]} 8. Be2 {[%clk 0:02:56.4]}
8... e6 {[%clk 0:02:50.6]} 9. Rc1 {[%clk 0:02:49.7]} 9... g5 {[%clk 0:02:45.1]}
10. a3 {[%clk 0:02:48.3]} 10... h5 {[%clk 0:02:45.2]} 11. c4 {[%clk 0:02:46.4]}
11... h4 {[%clk 0:02:45.8]} 12. h3 {[%clk 0:02:45.7]} 12... Bh5 {[%clk
0:02:44.5]} 13. cxd5 {[%clk 0:02:44.3]} 13... exd5 {[%clk 0:02:44]} 14. Qc2
{[%clk 0:02:43]} 14... Bd6 {[%clk 0:02:40.7]} 15. Bxa6 {[%clk 0:02:41.5]} 15...
bxa6 {[%clk 0:02:36.9]} 16. Qxc6 {[%clk 0:02:41.3]} 16... Qxc6 {[%clk
0:02:37.7]} 17. Rxc6 {[%clk 0:02:41.4]} 17... Kb7 {[%clk 0:02:38.6]} 18. Rc1
{[%clk 0:02:39.1]} 18... Ne7 {[%clk 0:02:38.9]} 19. b4 {[%clk 0:02:36.3]} 19...
Rhg8 {[%clk 0:02:28.4]} 20. Nb3 {[%clk 0:02:36.2]} 20... f5 {[%clk 0:02:26.6]}
21. Nc5+ {[%clk 0:02:35.4]} 21... Bxc5 {[%clk 0:02:25.6]} 22. Rxc5 {[%clk
0:02:34.7]} 22... c6 {[%clk 0:02:23.6]} 23. Ne5 {[%clk 0:02:32.2]} 23... Be8
{[%clk 0:02:17.8]} 24. Ke2 {[%clk 0:02:20.4]} 24... f4 {[%clk 0:02:14]} 25. Rhc1
{[%clk 0:02:17.3]} 25... Rd6 {[%clk 0:02:12.4]} 26. a4 {[%clk 0:02:13.5]} 26...
fxe3 {[%clk 0:02:10.8]} 27. fxe3 {[%clk 0:02:13.1]} 27... Nf5 {[%clk 0:02:06.6]}
28. b5 {[%clk 0:02:08.5]} 28... Ng3+ {[%clk 0:02:01.8]} 29. Ke1 {[%clk
0:02:06.2]} 29... cxb5 {[%clk 0:01:55.9]} 30. Rc7+ {[%clk 0:02:05.4]} 30... Kb6
{[%clk 0:01:56.1]} 31. Ba3 {[%clk 0:01:58.3]} 31... Rf6 {[%clk 0:01:52.4]} 32.
Bc5+ {[%clk 0:01:48.7]} 32... Ka5 {[%clk 0:01:49.3]} 33. Nf3 {[%clk 0:01:42.3]}
33... Bh5 {[%clk 0:01:10.5]} 34. axb5 {[%clk 0:01:41.3]} 34... Bxf3 {[%clk
0:01:03.4]} 35. gxf3 {[%clk 0:01:41.2]} 35... Rxf3 {[%clk 0:01:03.2]} 36. Ra1+
{[%clk 0:01:36]} 36... Kxb5 {[%clk 0:01:01.4]} 37. Rb7+ {[%clk 0:01:32.4]} 37...
Kc6 {[%clk 0:00:57.4]} 38. Rb6+ {[%clk 0:01:23.4]} 38... Kc7 {[%clk 0:00:56.4]}
39. Raxa6 {[%clk 0:01:22.1]} 39... Rf1+ {[%clk 0:00:41.3]} 40. Kd2 {[%clk
0:01:22]} 40... Ne4+ {[%clk 0:00:40.8]} 41. Kc2 {[%clk 0:01:18.7]} 41... Rf2+
{[%clk 0:00:40.4]} 42. Kb3 {[%clk 0:01:15.6]} 42... Nd2+ {[%clk 0:00:40.6]} 43.
Ka4 {[%clk 0:01:12.4]} 43... Nc4 {[%clk 0:00:37.6]} 44. Ra7+ {[%clk 0:01:11.2]}
44... Kc8 {[%clk 0:00:38]} 45. Rbb7 {[%clk 0:00:42.2]} 45... Ra2+ {[%clk
0:00:31.1]} 46. Kb5 {[%clk 0:00:42.5]} 46... Rb2+ {[%clk 0:00:26.6]} 47. Bb4
{[%clk 0:00:37]} 47... Nd6+ {[%clk 0:00:21]} 48. Kc6 {[%clk 0:00:37.3]} 48...
Rc2+ {[%clk 0:00:05]} 49. Kxd6 {[%clk 0:00:37.1]} 49... Rg6+ {[%clk 0:00:03.4]}
50. Ke5 {[%clk 0:00:36.8]} 1-0

[Event "Late-Titled-Tuesday-Blitz-September-05-2023"]
[Site "Chess.com"]
[Date "2023.09.05"]
[Round "2"]
[White "laskakid"]
[Black "stasOR4ik"]
[Result "0-1"]
[WhiteElo "2222"]
[BlackElo "2461"]
[TimeControl "180+1"]
[EndTime "14:18:03 PDT"]
[Termination "stasOR4ik won on time"]

1. d4 {[%clk 0:03:00.9]} 1... d5 {[%clk 0:02:59.5]} 2. c4 {[%clk 0:03:00.9]}
2... c6 {[%clk 0:02:59.3]} 3. Nf3 {[%clk 0:03:00]} 3... Nf6 {[%clk 0:02:59.5]}
4. Nc3 {[%clk 0:03:00.1]} 4... dxc4 {[%clk 0:03:00]} 5. a4 {[%clk 0:02:59]} 5...
Bf5 {[%clk 0:02:58.8]} 6. e3 {[%clk 0:02:59.2]} 6... e6 {[%clk 0:02:53.2]} 7.
Bxc4 {[%clk 0:02:59.2]} 7... Bb4 {[%clk 0:02:49.4]} 8. O-O {[%clk 0:02:59.2]}
8... O-O {[%clk 0:02:49.4]} 9. Qe2 {[%clk 0:02:56.9]} 9... a5 {[%clk 0:02:49]}
10. e4 {[%clk 0:02:53.4]} 10... Bg6 {[%clk 0:02:42.5]} 11. Bd3 {[%clk
0:02:52.9]} 11... Na6 {[%clk 0:02:36.2]} 12. e5 {[%clk 0:02:29.6]} 12... Nd5
{[%clk 0:02:34.1]} 13. Ne4 {[%clk 0:02:23.6]} 13... c5 {[%clk 0:02:26.1]} 14.
Bxa6 {[%clk 0:01:55]} 14... Rxa6 {[%clk 0:02:27]} 15. Nxc5 {[%clk 0:01:54.6]}
15... Bxc5 {[%clk 0:02:26.4]} 16. dxc5 {[%clk 0:01:54.7]} 16... Qc7 {[%clk
0:02:19.4]} 17. Be3 {[%clk 0:01:47.8]} 17... Rc6 {[%clk 0:02:01.8]} 18. Rac1
{[%clk 0:01:39.3]} 18... Rc8 {[%clk 0:01:58.6]} 19. Nd4 {[%clk 0:01:29.8]} 19...
Nxe3 {[%clk 0:01:37.5]} 20. Nb5 {[%clk 0:00:54.3]} 20... Qxe5 {[%clk 0:01:36.6]}
21. Qxe3 {[%clk 0:00:38.1]} 21... Qxe3 {[%clk 0:01:35.5]} 22. fxe3 {[%clk
0:00:38.3]} 22... Rxc5 {[%clk 0:01:36]} 23. Rxc5 {[%clk 0:00:25.5]} 23... Rxc5
{[%clk 0:01:36.9]} 24. Rd1 {[%clk 0:00:25.4]} 24... h5 {[%clk 0:01:36.3]} 25.
Rd8+ {[%clk 0:00:22.4]} 25... Kh7 {[%clk 0:01:36.3]} 26. Rd7 {[%clk 0:00:22.7]}
26... Rc1+ {[%clk 0:01:35.6]} 27. Kf2 {[%clk 0:00:22]} 27... Rc2+ {[%clk
0:01:35.9]} 28. Kf3 {[%clk 0:00:21.3]} 28... Rxb2 {[%clk 0:01:33.2]} 29. Rxb7
{[%clk 0:00:21.4]} 29... Rb4 {[%clk 0:01:28.1]} 30. Nd6 {[%clk 0:00:17.7]} 30...
Rxa4 {[%clk 0:01:22.6]} 31. Ra7 {[%clk 0:00:17.1]} 31... Ra2 {[%clk 0:01:14.2]}
32. Nxf7 {[%clk 0:00:15.8]} 32... Bxf7 {[%clk 0:01:07.5]} 33. Rxf7 {[%clk
0:00:14.9]} 33... Kg6 {[%clk 0:01:08.2]} 34. Ra7 {[%clk 0:00:13]} 34... Kf6
{[%clk 0:01:07.7]} 35. h4 {[%clk 0:00:11.4]} 35... Ra4 {[%clk 0:01:05.9]} 36. g3
{[%clk 0:00:11]} 36... Ra1 {[%clk 0:01:05.8]} 37. Ke4 {[%clk 0:00:09.8]} 37...
a4 {[%clk 0:01:04.6]} 38. Ra5 {[%clk 0:00:08.4]} 38... g6 {[%clk 0:01:03.6]} 39.
Kf4 {[%clk 0:00:06.8]} 39... a3 {[%clk 0:01:01.4]} 40. e4 {[%clk 0:00:05.4]}
40... e5+ {[%clk 0:00:52.9]} 41. Kf3 {[%clk 0:00:04.6]} 41... a2 {[%clk
0:00:32.8]} 42. Kg2 {[%clk 0:00:04.7]} 42... Ke7 {[%clk 0:00:28.4]} 43. Ra6
{[%clk 0:00:04.6]} 43... Kd7 {[%clk 0:00:27.8]} 44. Ra5 {[%clk 0:00:03]} 44...
Kc6 {[%clk 0:00:27.5]} 45. Ra8 {[%clk 0:00:02.4]} 45... Kc5 {[%clk 0:00:26.6]}
0-1

[Event "Late-Titled-Tuesday-Blitz-September-05-2023"]
[Site "Chess.com"]
[Date "2023.09.05"]
[Round "2"]
[White "DishonorOnYourCow"]
[Black "jorquerino"]
[Result "0-1"]
[WhiteElo "2530"]
[BlackElo "2354"]
[TimeControl "180+1"]
[EndTime "14:18:05 PDT"]
[Termination "jorquerino won by checkmate"]

1. d4 {[%clk 0:03:00.9]} 1... d5 {[%clk 0:02:54.8]} 2. c4 {[%clk 0:03:00.1]}
2... Bf5 {[%clk 0:02:55.5]} 3. cxd5 {[%clk 0:02:59.8]} 3... Bxb1 {[%clk
0:02:55.4]} 4. Rxb1 {[%clk 0:02:59.7]} 4... Qxd5 {[%clk 0:02:55]} 5. Nf3 {[%clk
0:02:53]} 5... Nc6 {[%clk 0:02:55.3]} 6. a3 {[%clk 0:02:48.8]} 6... O-O-O {[%clk
0:02:54.4]} 7. e3 {[%clk 0:02:48.6]} 7... e5 {[%clk 0:02:54.1]} 8. Be2 {[%clk
0:02:39.8]} 8... exd4 {[%clk 0:02:53.5]} 9. O-O {[%clk 0:02:36.3]} 9... d3
{[%clk 0:02:52.9]} 10. Bd2 {[%clk 0:02:25.1]} 10... dxe2 {[%clk 0:02:51.3]} 11.
Qxe2 {[%clk 0:02:26]} 11... Qd3 {[%clk 0:02:43.6]} 12. Qe1 {[%clk 0:02:25.7]}
12... Nf6 {[%clk 0:02:34.2]} 13. Rc1 {[%clk 0:02:19.8]} 13... Bd6 {[%clk
0:02:24.2]} 14. b4 {[%clk 0:02:08.8]} 14... Kb8 {[%clk 0:02:12.1]} 15. Rc3
{[%clk 0:02:07.9]} 15... Qg6 {[%clk 0:02:01.1]} 16. b5 {[%clk 0:02:03.5]} 16...
Ne5 {[%clk 0:01:57.9]} 17. Nd4 {[%clk 0:02:00]} 17... Ne4 {[%clk 0:01:52.1]} 18.
Rb3 {[%clk 0:01:52.3]} 18... Qh5 {[%clk 0:01:26.8]} 19. f4 {[%clk 0:01:46.9]}
19... Nxd2 {[%clk 0:01:19.7]} 20. Qxd2 {[%clk 0:01:45.7]} 20... Nc4 {[%clk
0:01:05.5]} 21. Qc3 {[%clk 0:01:42.3]} 21... Nb6 {[%clk 0:01:01]} 22. a4 {[%clk
0:01:34.8]} 22... g5 {[%clk 0:00:37.8]} 23. a5 {[%clk 0:01:32.9]} 23... Nd5
{[%clk 0:00:37.2]} 24. Qc4 {[%clk 0:01:14.6]} 24... gxf4 {[%clk 0:00:36.8]} 25.
Nc6+ {[%clk 0:00:48]} 25... Ka8 {[%clk 0:00:31.5]} 26. a6 {[%clk 0:00:26.7]}
26... fxe3 {[%clk 0:00:18.3]} 27. axb7+ {[%clk 0:00:26.4]} 27... Kxb7 {[%clk
0:00:18.2]} 28. Nxd8+ {[%clk 0:00:20]} 28... Rxd8 {[%clk 0:00:17.3]} 29. Qc6+
{[%clk 0:00:20.6]} 29... Kb8 {[%clk 0:00:14.2]} 30. h3 {[%clk 0:00:12.7]} 30...
Qe5 {[%clk 0:00:11.7]} 31. Re1 {[%clk 0:00:04.8]} 31... e2 {[%clk 0:00:10.2]}
32. Rf3 {[%clk 0:00:03.1]} 32... Qd4+ {[%clk 0:00:08.5]} 33. Kh1 {[%clk
0:00:03.2]} 33... Qd1 {[%clk 0:00:07.9]} 34. Qc1 {[%clk 0:00:02.6]} 34... Qxc1
{[%clk 0:00:07.3]} 35. Rxc1 {[%clk 0:00:03.5]} 35... Re8 {[%clk 0:00:07.1]} 36.
Re1 {[%clk 0:00:04]} 36... Bb4 {[%clk 0:00:07]} 37. Rxe2 {[%clk 0:00:02.8]}
37... Rxe2 {[%clk 0:00:06.7]} 38. Rxf7 {[%clk 0:00:03.7]} 38... Bd6 {[%clk
0:00:06.5]} 39. g4 {[%clk 0:00:03.3]} 39... Ne3 {[%clk 0:00:05.6]} 40. Rxh7
{[%clk 0:00:02.1]} 40... Re1# {[%clk 0:00:05.5]} 0-1